lending/lending_fUSD_20241211
["ID","MTS","AMOUNT","RATE_DAILY","PERIOD"]
[344937659,1733891454279,-500.0,0.00010992,2]
[344937660,1733891454288,-500.0,0.00010992,2]
[344937661,1733891454298,-773.77,0.00010992,2]
[344937662,1733891454307,-500.0,0.00010992,2]
[344937663,1733891454316,-500.0,0.00010992,2]
[344937664,1733891454326,-500.0,0.00010992,2]
[344937665,1733891454335,-500.0,0.00010992,2]
[344937666,1733891454344,-607.91,0.00010992,2]
[344937667,1733891454354,-500.0,0.00010992,2]
[344937668,1733891454364,-500.0,0.00010992,2]
[344937669,1733891454374,-500.0,0.00010992,2]
[344937670,1733891454384,-500.0,0.00010992,2]
[344937671,1733891454393,-239.86,0.00010992,2]
[344937672,1733891454403,-402.34,0.00010992,2]
[344937673,1733891454416,-500.0,0.00010992,2]
[344937674,1733891454426,-500.0,0.00010992,2]
[344937675,1733891454435,-500.0,0.00010992,2]
[344937676,1733891454445,-500.0,0.00010992,2]
[344937677,1733891454455,-500.0,0.00010992,2]
[344937678,1733891454465,-500.0,0.00010992,2]
[344937679,1733891454474,-47.43350042,0.00010992,2]
[344937680,1733891454948,-413.72649958,0.00010992,2]
[344937681,1733891454958,-500.0,0.00010992,2]
[344937682,1733891454968,-500.0,0.00010992,2]
[344937683,1733891454978,-512.89317591,0.00010992,2]
[344937684,1733891454988,-500.0,0.00010992,2]
[344937685,1733891454999,-500.0,0.00010992,2]
[344937686,1733891455008,-620.4,0.00010992,2]
[344937687,1733891455019,-983.12,0.00010992,2]
[344937688,1733891455029,-1864.78,0.00010992,2]
[344937689,1733891455039,-610.02,0.00010992,2]
[344937690,1733891455048,-500.0,0.00010992,2]
[344937691,1733891455057,-500.0,0.00010992,2]
[344937692,1733891455066,-587.35945721,0.00010992,2]
[344937693,1733891455075,-500.0,0.00010992,2]
[344937694,1733891455086,-1844.33,0.00010992,2]
[344937695,1733891455096,-500.0,0.00010992,2]
[344937696,1733891455106,-545.5,0.00010992,2]
[344937697,1733891455115,-563.6,0.00010992,2]
[344937698,1733891455124,-3117.26,0.00010992,2]
[344937699,1733891455134,-388.37781967,0.00010992,2]
[344937700,1733891455143,-2404.88,0.00010992,2]
[344937701,1733891455152,-500.0,0.00010992,2]
[344937702,1733891455164,-581.07,0.00010992,2]
[344937703,1733891455174,-1897.32,0.00010992,2]
[344937704,1733891455183,-3541.07,0.00010992,2]
[344937705,1733891455193,-1075.65,0.00010992,2]
[344937706,1733891455202,-310.4001192,0.00010992,2]
[344937707,1733891455222,-189.5998808,0.00010992,2]
[344937708,1733891455232,-306.52433066,0.00010992,2]
[344937709,1733891455265,-500.0,0.00010958,2]
[344937710,1733891455275,-344.0761665,0.00010992,2]
[344937711,1733891455287,-178.69950284,0.00010992,2]
[344937712,1733891455296,-206.14469758,0.00010992,2]
[344937713,1733891455726,-500.0,0.00010958,2]
[344937714,1733891455735,-500.0,0.00010958,2]
[344937715,1733891455746,-213.63741284,0.00010958,2]
[344937716,1733891455756,-500.0,0.00010958,2]
[344937717,1733891455765,-500.0,0.00010958,2]
[344937718,1733891455775,-500.0,0.00010958,2]
[344937719,1733891455784,-500.0,0.0001099,2]
[344937720,1733891455793,-561.96,0.0001099,2]
[344937721,1733891455803,-500.0,0.00010991,2]
[344937722,1733891455817,-500.0,0.00010991,2]
[344937723,1733891455827,-241.86727842,0.00010992,2]
[344937724,1733891455838,-500.0,0.00010992,2]
[344937725,1733891455848,-500.0,0.00010992,2]
[344937726,1733891455858,-500.0,0.00010992,2]
[344937727,1733891455868,-535.65,0.00010992,2]
[344937728,1733891455879,-11402.83,0.00010992,2]
[344937729,1733891455888,-1286.33,0.00010992,2]
[344937730,1733891455898,-316.34371196,0.00010992,2]
[344937731,1733891455907,-500.0,0.00010992,2]
[344937732,1733891455919,-1159.33,0.00010992,2]
[344937733,1733891455929,-500.0,0.00010992,2]
[344937734,1733891455941,-500.0,0.00010992,2]
[344937735,1733891455952,-419.84801704,0.00010992,2]
[344937736,1733891455962,-500.0,0.00010992,2]
[344937737,1733891455971,-500.0,0.00010992,2]
[344937738,1733891455982,-500.0,0.00010992,2]
[344937739,1733891455991,-619.19,0.00010992,2]
[344937740,1733891456001,-500.0,0.00010992,2]
[344937741,1733891456011,-500.0,0.00010992,2]
[344937742,1733891456020,-500.0,0.00010992,2]
[344937743,1733891456029,-500.0,0.00010992,2]
[344937744,1733891456039,-500.0,0.00010992,2]
[344937745,1733891456048,-302.6,0.00010992,2]
[344937746,1733891456057,-500.0,0.00010992,2]
[344937747,1733891456067,-500.0,0.00010992,2]
[344937748,1733891456077,-500.0,0.00010992,2]
[344937749,1733891456087,-500.0,0.00010992,2]
[344937750,1733891456097,-1836.03,0.00010992,2]
[344937751,1733891456107,-500.0,0.00010992,2]
[344937752,1733891456116,-500.0,0.00010992,2]
[344937753,1733891456126,-500.0,0.00010992,2]
[344937754,1733891456136,-500.0,0.00010992,2]
[344937755,1733891456147,-500.0,0.00010992,2]
[344937756,1733891456157,-1354.77,0.00010992,2]
[344937757,1733891456171,-2879.16,0.00010992,2]
[344937758,1733891456181,-500.0,0.00010992,2]
[344937759,1733891456191,-500.0,0.00010992,2]
[344937760,1733891456201,-971.45,0.00010992,2]
[344937761,1733891456211,-351.223003,0.00010992,2]
[344937762,1733891456222,-500.0,0.00010992,2]
[344937763,1733891456232,-255.06,0.00010992,2]
[344937764,1733891456241,-500.0,0.00010992,2]
[344937765,1733891456251,-500.0,0.00010992,2]
[344937766,1733891456260,-910.37,0.00010992,2]
[344937767,1733891456271,-639.28,0.00010992,2]
[344937768,1733891456281,-536.59,0.00010992,2]
[344937769,1733891456291,-500.0,0.00010992,2]
[344937770,1733891456301,-2266.78,0.00010992,2]
[344937771,1733891456311,-500.0,0.00010992,2]
[344937772,1733891456321,-500.0,0.00010992,2]
[344937773,1733891456331,-1566.77,0.00010992,2]
[344937774,1733891456341,-5149.97,0.00010992,2]
[344937775,1733891456350,-500.0,0.00010992,2]
[344937776,1733891456360,-500.0,0.00010992,2]
[344937777,1733891456370,-500.0,0.00010992,2]
[344937778,1733891456380,-1858.35,0.00010992,2]
[344937779,1733891456389,-500.0,0.00010992,2]
[344937780,1733891456399,-4134.05,0.00010992,2]
[344937781,1733891456409,-618.58,0.00010992,2]
[344937782,1733891456425,-534.64,0.00010992,2]
[344937783,1733891456435,-500.0,0.00010992,2]
[344937784,1733891456446,-500.0,0.00010992,2]
[344937785,1733891456456,-628.87,0.00010992,2]
[344937786,1733891456466,-500.0,0.00010992,2]
[344937787,1733891456476,-1689.5,0.00010992,2]
[344937788,1733891456486,-500.0,0.00010992,2]
[344937789,1733891456495,-500.0,0.00010992,2]
[344937790,1733891456505,-500.0,0.00010992,2]
[344937791,1733891456514,-500.0,0.00010992,2]
[344937792,1733891456524,-500.0,0.00010992,2]
[344937793,1733891456534,-1188.27,0.00010992,2]
[344937794,1733891456543,-1143.66,0.00010992,2]
[344937795,1733891456552,-500.0,0.00010992,2]
[344937796,1733891456561,-500.0,0.00010992,2]
[344937797,1733891456571,-500.0,0.00010992,2]
[344937798,1733891456580,-500.0,0.00010992,2]
[344937799,1733891456590,-673.31,0.00010992,2]
[344937800,1733891456599,-1789.83,0.00010992,2]
[344937801,1733891456609,-500.0,0.00010992,2]
[344937802,1733891456620,-310.82,0.00010992,2]
[344937803,1733891456629,-500.0,0.00010992,2]
[344937804,1733891456639,-500.0,0.00010992,2]
[344937805,1733891456648,-500.0,0.00010992,2]
[344937806,1733891456658,-500.0,0.00010992,2]
[344937807,1733891456671,-4426.86,0.00010992,2]
[344937808,1733891456691,-500.0,0.00010992,2]
[344937809,1733891456702,-500.70456312,0.00010992,2]
[344937810,1733891456712,-1244.56,0.00010992,2]
[344937811,1733891456722,-1727.68,0.00010992,2]
[344937812,1733891456731,-500.0,0.00010992,2]
[344937813,1733891456740,-500.0,0.00010992,2]
[344937814,1733891456750,-500.0,0.00010992,2]
[344937815,1733891456759,-500.0,0.00010992,2]
[344937816,1733891456768,-567.38,0.00010992,2]
[344937817,1733891456778,-500.0,0.00010992,2]
[344937818,1733891456787,-564.11754617,0.00010992,2]
[344937819,1733891456796,-4427.92,0.00010992,2]
[344937820,1733891456805,-1086.36,0.00010992,2]
[344937821,1733891456815,-500.0,0.00010992,2]
[344937822,1733891456825,-649.52088042,0.00010992,2]
[344937823,1733891456986,-500.0,0.00010992,2]
[344937824,1733891456996,-500.0,0.00010992,2]
[344937825,1733891457006,-3894.52,0.00010992,2]
[344937826,1733891457015,-500.0,0.00010992,2]
[344937827,1733891457025,-1304.5,0.00010992,2]
[344937828,1733891457034,-500.0,0.00010993,2]
[344937829,1733891457043,-500.0,0.00010993,2]
[344937830,1733891457054,-500.0,0.00010993,2]
[344937831,1733891457064,-526.91,0.00010993,2]
[344937832,1733891457073,-500.0,0.00010993,2]
[344937833,1733891457083,-500.0,0.00010993,2]
[344937834,1733891457093,-500.0,0.00010993,2]
[344937835,1733891457102,-650.32,0.00010993,2]
[344937836,1733891457112,-521.07,0.00010993,2]
[344937837,1733891457121,-500.0,0.00010993,2]
[344937838,1733891457131,-569.93,0.00010993,2]
[344937839,1733891457141,-630.75,0.00010993,2]
[344937840,1733891457150,-500.0,0.00010993,2]
[344937841,1733891457161,-705.92,0.00010993,2]
[344937842,1733891457171,-2502.19,0.00010993,2]
[344937843,1733891457180,-500.0,0.00010993,2]
[344937844,1733891457190,-500.0,0.00010993,2]
[344937845,1733891457199,-1337.61,0.00010993,2]
[344937846,1733891457209,-500.0,0.00010993,2]
[344937847,1733891457218,-500.0,0.00010993,2]
[344937848,1733891457228,-500.0,0.00010993,2]
[344937849,1733891457240,-518.82,0.00010993,2]
[344937850,1733891457250,-704.57,0.00010993,2]
[344937851,1733891457260,-500.0,0.00010993,2]
[344937852,1733891457269,-500.0,0.00010993,2]
[344937853,1733891457279,-500.0,0.00010993,2]
[344937854,1733891457288,-500.0,0.00010993,2]
[344937855,1733891457298,-500.0,0.00010993,2]
[344937856,1733891457307,-500.0,0.00010993,2]
[344937857,1733891457317,-500.0,0.00010993,2]
[344937858,1733891457326,-500.0,0.00010993,2]
[344937859,1733891457336,-500.0,0.00010993,2]
[344937860,1733891457346,-500.0,0.00010993,2]
[344937861,1733891457355,-500.0,0.00010993,2]
[344937862,1733891457365,-500.0,0.00010993,2]
[344937863,1733891457375,-625.90243076,0.00010993,2]
[344937864,1733891457385,-500.0,0.00010993,2]
[344937865,1733891457395,-343.17,0.00010993,2]
[344937866,1733891457404,-500.0,0.00010993,2]
[344937867,1733891457416,-500.0,0.00010993,2]
[344937868,1733891457426,-2404.88,0.00010993,2]
[344937869,1733891457435,-581.07,0.00010993,2]
[344937870,1733891457446,-500.0,0.00010993,2]
[344937871,1733891457456,-829.3,0.00010993,2]
[344937872,1733891457466,-448.011976,0.00010993,2]
[344937873,1733891457476,-500.0,0.00010993,2]
[344937874,1733891457486,-535.65,0.00010993,2]
[344937875,1733891457495,-500.0,0.00010993,2]
[344937876,1733891457505,-500.0,0.00010993,2]
[344937877,1733891457515,-500.0,0.00010993,2]
[344937878,1733891457525,-619.19,0.00010993,2]
[344937879,1733891457534,-448.78743959,0.00010993,2]
[344937880,1733891457544,-500.0,0.00010993,2]
[344937881,1733891457554,-500.0,0.00010993,2]
[344937882,1733891457564,-500.0,0.00010993,2]
[344937883,1733891457573,-500.0,0.00010993,2]
[344937884,1733891457583,-2879.16,0.00010993,2]
[344937885,1733891457593,-500.0,0.00010993,2]
[344937886,1733891457603,-351.223003,0.00010993,2]
[344937887,1733891457612,-500.0,0.00010993,2]
[344937888,1733891457623,-639.28,0.00010993,2]
[344937889,1733891457633,-613.01,0.00010993,2]
[344937890,1733891457643,-500.0,0.00010993,2]
[344937891,1733891457652,-697.05,0.00010993,2]
[344937892,1733891457663,-500.0,0.00010993,2]
[344937893,1733891457676,-1566.77,0.00010993,2]
[344937894,1733891457685,-6093.04,0.00010993,2]
[344937895,1733891457695,-500.0,0.00010993,2]
[344937896,1733891457704,-189.95191569,0.00010993,2]
[344937897,1733891457714,-1858.35,0.00010993,2]
[344937898,1733891457723,-1635.15,0.00010993,2]
[344937899,1733891457733,-625.10122026,0.00010993,2]
[344937900,1733891457745,-500.0,0.00010993,2]
[344937901,1733891457756,-774.03,0.00010993,2]
[344937902,1733891457766,-1689.5,0.00010993,2]
[344937903,1733891457776,-500.0,0.00010993,2]
[344937904,1733891457785,-519.79,0.00010993,2]
[344937905,1733891457795,-500.0,0.00010993,2]
[344937906,1733891457804,-500.0,0.00010993,2]
[344937907,1733891457814,-673.31,0.00010993,2]
[344937908,1733891457823,-1495.95,0.00010993,2]
[344937909,1733891457832,-1789.83,0.00010993,2]
[344937910,1733891457843,-1275.57,0.00010993,2]
[344937911,1733891457852,-500.0,0.00010993,2]
[344937912,1733891457861,-4426.86,0.00010993,2]
[344937913,1733891457870,-500.0,0.00010993,2]
[344937914,1733891457880,-500.0,0.00010993,2]
[344937915,1733891457889,-1544.48,0.00010993,2]
[344937916,1733891457899,-1973.51,0.00010993,2]
[344937917,1733891457908,-500.0,0.00010993,2]
[344937918,1733891457920,-4427.92,0.00010993,2]
[344937919,1733891457930,-440.45,0.00010993,2]
[344937920,1733891457939,-500.0,0.00010993,2]
[344937921,1733891457949,-500.0,0.00010993,2]
[344937922,1733891457958,-500.0,0.00010993,2]
[344937923,1733891457967,-500.0,0.00010993,2]
[344937924,1733891457977,-500.0,0.00010993,2]
[344937925,1733891457986,-2340.65,0.00010993,2]
[344937926,1733891457995,-3894.52,0.00010993,2]
[344937927,1733891458004,-500.0,0.00010993,2]
[344937928,1733891458014,-1304.5,0.00010993,2]
[344937929,1733891458023,-500.0,0.00010993,2]
[344937930,1733891458033,-500.0,0.00010994,2]
[344937931,1733891458042,-646.39,0.00010994,2]
[344937932,1733891458051,-463.50400718,0.00010994,2]
[344937933,1733891458060,-500.0,0.00010994,2]
[344937934,1733891458069,-500.0,0.00010994,2]
[344937935,1733891458078,-223.84324314,0.00010994,2]
[344937936,1733891458088,-500.0,0.00010994,2]
[344937937,1733891458097,-500.0,0.00010994,2]
[344937938,1733891458106,-500.0,0.00010994,2]
[344937939,1733891458115,-262.32810915,0.00010994,2]
[344937940,1733891458124,-500.0,0.00010994,2]
[344937941,1733891458133,-500.0,0.00010994,2]
[344937942,1733891458143,-626.79537399,0.00010994,2]
[344937943,1733891458152,-617.34,0.00010994,2]
[344937944,1733891458161,-261.89,0.00010994,2]
[344937945,1733891458172,-500.0,0.00010994,2]
[344937946,1733891458183,-754.3,0.00010994,2]
[344937947,1733891458192,-522.79,0.00010994,2]
[344937948,1733891458202,-500.0,0.00010994,2]
[344937949,1733891458213,-500.0,0.00010994,2]
[344937950,1733891458223,-217.6,0.00010994,2]
[344937951,1733891458233,-500.0,0.00010994,2]
[344937952,1733891458243,-616.0129145,0.00010994,2]
[344937953,1733891458254,-204.48188316,0.00010994,2]
[344937954,1733891458263,-177.52,0.00010994,2]
[344937955,1733891458272,-502.50818264,0.00010994,2]
[344937956,1733891458281,-293.49981286,0.00010994,2]
[344937957,1733891458291,-468.49596515,0.00010994,2]
[344937958,1733891458300,-500.0,0.00010994,2]
[344937959,1733891458309,-500.0,0.00010994,2]
[344937960,1733891458318,-501.08937412,0.00010994,2]
[344937961,1733891458327,-500.33228775,0.00010994,2]
[344937962,1733891458336,-500.0,0.00010994,2]
[344937963,1733891458346,-503.56691606,0.00010994,2]
[344937964,1733891458355,-501.86481024,0.00010994,2]
[344937965,1733891458365,-501.48301941,0.00010994,2]
[344937966,1733891458374,-501.76908948,0.00010994,2]
[344937967,1733891458383,-500.0,0.00010994,2]
[344937968,1733891458392,-500.0,0.00010994,2]
[344937969,1733891458402,-180.47,0.00010994,2]
[344937970,1733891458411,-180.55,0.00010994,2]
[344937971,1733891458422,-500.0,0.00010994,2]
[344937972,1733891458431,-500.0,0.00010994,2]
[344937973,1733891458442,-314.77,0.00010994,2]
[344937974,1733891458451,-500.0,0.00010994,2]
[344937975,1733891458461,-387.66,0.00010994,2]
[344937976,1733891458471,-500.0,0.00010994,2]
[344937977,1733891458480,-370.09228763,0.00010994,2]
[344937978,1733891458490,-500.0,0.00010994,2]
[344937979,1733891458500,-500.0,0.00010994,2]
[344937980,1733891458509,-500.0,0.00010994,2]
[344937981,1733891458519,-947.01,0.00010994,2]
[344937982,1733891458528,-500.0,0.00010994,2]
[344937983,1733891458537,-500.0,0.00010994,2]
[344937984,1733891458546,-500.0,0.00010994,2]
[344937985,1733891458555,-500.0,0.00010994,2]
[344937986,1733891458565,-500.0,0.00010994,2]
[344937987,1733891458575,-500.0,0.00010994,2]
[344937988,1733891458585,-500.0,0.00010994,2]
[344937989,1733891458594,-500.0,0.00010994,2]
[344937990,1733891458603,-500.0,0.00010994,2]
[344937991,1733891458613,-553.90771535,0.00010994,2]
[344937992,1733891458623,-500.0,0.00010994,2]
[344937993,1733891458633,-500.0,0.00010994,2]
[344937994,1733891458644,-165.8322395,0.00010994,2]
[344937995,1733891458655,-511.55353702,0.00010994,2]
[344937996,1733891458665,-500.0,0.00010994,2]
[344937997,1733891458676,-500.0,0.00010994,2]
[344937998,1733891458685,-500.0,0.00010994,2]
[344937999,1733891458695,-500.0,0.00010994,2]
[344938000,1733891458705,-500.0,0.00010994,2]
[344938001,1733891458717,-500.0,0.00010994,2]
[344938002,1733891458727,-500.0,0.00010994,2]
[344938003,1733891458736,-500.0,0.00010994,2]
[344938004,1733891458747,-500.0,0.00010994,2]
[344938005,1733891458757,-167.03371613,0.00010994,2]
[344938006,1733891458767,-500.0,0.00010994,2]
[344938007,1733891458776,-377.57,0.00010994,2]
[344938008,1733891458786,-500.0,0.00010994,2]
[344938009,1733891458797,-500.0,0.00010994,2]
[344938010,1733891458807,-500.0,0.00010994,2]
[344938011,1733891458817,-500.0,0.00010994,2]
[344938012,1733891458827,-500.0,0.00010994,2]
[344938013,1733891458838,-1423.19,0.00010994,2]
[344938014,1733891458848,-500.0,0.00010994,2]
[344938015,1733891458858,-501.57644719,0.00010994,2]
[344938016,1733891458867,-500.0,0.00010994,2]
[344938017,1733891458877,-500.0,0.00010994,2]
[344938018,1733891458886,-500.0,0.00010994,2]
[344938019,1733891458897,-500.0,0.00010994,2]
[344938020,1733891458907,-1030.21,0.00010994,2]
[344938021,1733891458917,-500.0,0.00010994,2]
[344938022,1733891458927,-500.0,0.00010994,2]
[344938023,1733891458936,-761.41,0.00010994,2]
[344938024,1733891458946,-500.0,0.00010994,2]
[344938025,1733891458955,-500.0,0.00010994,2]
[344938026,1733891458964,-500.0,0.00010994,2]
[344938027,1733891458973,-604.5,0.00010994,2]
[344938028,1733891458984,-500.0,0.00010994,2]
[344938029,1733891458993,-500.0,0.00010994,2]
[344938030,1733891459003,-500.0,0.00010994,2]
[344938031,1733891459012,-500.0,0.00010994,2]
[344938032,1733891459022,-500.0,0.00010994,2]
[344938033,1733891459032,-500.0,0.00010994,2]
[344938034,1733891459041,-500.0,0.00010994,2]
[344938035,1733891459051,-500.0,0.00010994,2]
[344938036,1733891459060,-500.0,0.00010994,2]
[344938037,1733891459069,-500.0,0.00010994,2]
[344938038,1733891459078,-1407.95,0.00010994,2]
[344938039,1733891459087,-500.0,0.00010994,2]
[344938040,1733891459096,-500.0,0.00010994,2]
[344938041,1733891459105,-500.0,0.00010994,2]
[344938042,1733891459115,-500.0,0.00010994,2]
[344938043,1733891459124,-500.0,0.00010994,2]
[344938044,1733891459133,-500.0,0.00010994,2]
[344938045,1733891459143,-500.0,0.00010994,2]
[344938046,1733891459152,-500.0,0.00010994,2]
[344938047,1733891459161,-521.9326031,0.00010994,2]
[344938048,1733891459173,-381.44,0.00010994,2]
[344938049,1733891459182,-500.0,0.00010994,2]
[344938050,1733891459191,-1037.91,0.00010994,2]
[344938051,1733891459200,-500.0,0.00010994,2]
[344938052,1733891459209,-500.0,0.00010994,2]
[344938053,1733891459219,-500.0,0.00010994,2]
[344938054,1733891459228,-335.49660222,0.00010994,2]
[344938055,1733891459238,-500.0,0.00010994,2]
[344938056,1733891459247,-500.0,0.00010994,2]
[344938057,1733891459256,-500.0,0.00010994,2]
[344938058,1733891459265,-500.0,0.00010994,2]
[344938059,1733891459404,-198.96265822,0.00010994,2]
[344938060,1733891459416,-500.31871739,0.00010994,2]
[344938061,1733891459425,-500.0,0.00010994,2]
[344938062,1733891459435,-525.82,0.00010994,2]
[344938063,1733891459445,-500.0,0.00010994,2]
[344938064,1733891459454,-293.46,0.00010994,2]
[344938065,1733891459464,-500.0,0.00010994,2]
[344938066,1733891459473,-500.0,0.00010994,2]
[344938067,1733891459483,-500.0,0.00010994,2]
[344938068,1733891459493,-500.0,0.00010994,2]
[344938069,1733891459502,-369.9931206,0.00010994,2]
[344938070,1733891459511,-697.73,0.00010994,2]
[344938071,1733891459520,-500.0,0.00010994,2]
[344938072,1733891459530,-500.0,0.00010994,2]
[344938073,1733891459539,-500.0,0.00010994,2]
[344938074,1733891459549,-500.0,0.00010994,2]
[344938075,1733891459559,-500.0,0.00010994,2]
[344938076,1733891459568,-500.0,0.00010994,2]
[344938077,1733891459578,-500.0,0.00010994,2]
[344938078,1733891459587,-500.0,0.00010994,2]
[344938079,1733891459597,-500.0,0.00010994,2]
[344938080,1733891459606,-500.0,0.00010994,2]
[344938081,1733891459615,-500.0,0.00010994,2]
[344938082,1733891459624,-500.0,0.00010994,2]
[344938083,1733891459634,-500.0,0.00010994,2]
[344938084,1733891459643,-500.0,0.00010994,2]
[344938085,1733891459653,-500.0,0.00010994,2]
[344938086,1733891459662,-500.0,0.00010994,2]
[344938087,1733891459679,-500.0,0.00010994,2]
[344938088,1733891459692,-500.0,0.00010994,2]
[344938089,1733891459701,-500.0,0.00010994,2]
[344938090,1733891459711,-500.0,0.00010994,2]
[344938091,1733891459720,-500.0,0.00010994,2]
[344938092,1733891459729,-500.0,0.00010994,2]
[344938093,1733891459739,-500.0,0.00010994,2]
[344938094,1733891459750,-500.0,0.00010994,2]
[344938095,1733891459759,-500.0,0.00010994,2]
[344938096,1733891459768,-500.0,0.00010994,2]
[344938097,1733891459777,-500.0,0.00010994,2]
[344938098,1733891459786,-241.39839911,0.00010994,2]
[344938099,1733891459795,-500.0,0.00010994,2]
[344938100,1733891459804,-500.0,0.00010994,2]
[344938101,1733891459813,-500.0,0.00010994,2]
[344938102,1733891459823,-500.0,0.00010994,2]
[344938103,1733891459833,-509.1902915,0.00010994,2]
[344938104,1733891459842,-500.0,0.00010994,2]
[344938105,1733891459852,-500.0,0.00010994,2]
[344938106,1733891459861,-1409.78,0.00010994,2]
[344938107,1733891459870,-500.0,0.00010994,2]
[344938108,1733891459880,-500.0,0.00010994,2]
[344938109,1733891459889,-500.0,0.00010994,2]
[344938110,1733891459899,-500.0,0.00010994,2]
[344938111,1733891459908,-500.0,0.00010994,2]
[344938112,1733891459920,-500.0,0.00010994,2]
[344938113,1733891459929,-500.0,0.00010994,2]
[344938114,1733891459938,-500.0,0.00010994,2]
[344938115,1733891459948,-585.8959634,0.00010994,2]
[344938116,1733891459957,-500.0,0.00010994,2]
[344938117,1733891459966,-500.0,0.00010994,2]
[344938118,1733891459975,-500.0,0.00010994,2]
[344938119,1733891459984,-500.0,0.00010994,2]
[344938120,1733891459993,-500.0,0.00010994,2]
[344938121,1733891460002,-500.0,0.00010994,2]
[344938122,1733891460011,-500.0,0.00010994,2]
[344938123,1733891460021,-500.0,0.00010994,2]
[344938124,1733891460030,-500.0,0.00010994,2]
[344938125,1733891460041,-500.0,0.00010994,2]
[344938126,1733891460051,-500.0,0.00010994,2]
[344938127,1733891460061,-500.0,0.00010994,2]
[344938128,1733891460070,-500.0,0.00010994,2]
[344938129,1733891460080,-500.0,0.00010994,2]
[344938130,1733891460090,-619.9348842,0.00010994,2]
[344938131,1733891460099,-500.0,0.00010994,2]
[344938132,1733891460109,-1751.26,0.00010994,2]
[344938133,1733891460118,-500.0,0.00010994,2]
[344938134,1733891460128,-500.0,0.00010994,2]
[344938135,1733891460137,-538.87,0.00010994,2]
[344938136,1733891460146,-500.0,0.00010994,2]
[344938137,1733891460156,-500.0,0.00010994,2]
[344938138,1733891460167,-1507.96,0.00010994,2]
[344938139,1733891460176,-500.0,0.00010994,2]
[344938140,1733891460186,-500.0,0.00010994,2]
[344938141,1733891460195,-500.0,0.00010994,2]
[344938142,1733891460204,-592.85,0.00010994,2]
[344938143,1733891460213,-500.0,0.00010994,2]
[344938144,1733891460223,-500.0,0.00010994,2]
[344938145,1733891460232,-500.0,0.00010994,2]
[344938146,1733891460241,-579.00169657,0.00010994,2]
[344938147,1733891460251,-500.0,0.00010994,2]
[344938148,1733891460260,-500.0,0.00010994,2]
[344938149,1733891460269,-500.0,0.00010994,2]
[344938150,1733891460279,-500.0,0.00010994,2]
[344938151,1733891460288,-500.0,0.00010994,2]
[344938152,1733891460297,-500.0,0.00010994,2]
[344938153,1733891460307,-500.0,0.00010994,2]
[344938154,1733891460316,-500.0,0.00010994,2]
[344938155,1733891460325,-773.77,0.00010994,2]
[344938156,1733891460335,-500.0,0.00010994,2]
[344938157,1733891460344,-500.0,0.00010994,2]
[344938158,1733891460353,-500.0,0.00010994,2]